[Event "Titled Tuesday Blitz May 10 Early 2022"]
[White "Migot, Tangi"]
[Black "Odegov, Artem"]
[WhiteFideId "662445"]
[BlackFideId "34183644"]
[WhiteElo "2505"]
[BlackElo "2286"]
[Result "0-1"]
[Round "09"]
[TimeControl "180+1"]
[Date "2022.05.11"]
[WhiteClock "0:00:01"]
[BlackClock "0:00:43"]

1. Nf3 {[%clk 0:03:00]}  d5 {[%clk 0:02:59]} 2. g3 {[%clk 0:03:00]}  c6 {[%clk 0:02:58]} 3. c4 {[%clk 0:03:00]}  Bf5 {[%clk 0:02:57]} 4. Bg2 {[%clk 0:03:00]}  Nf6 {[%clk 0:02:57]} 5. O-O {[%clk 0:03:00]}  e6 {[%clk 0:02:57]} 6. Nd4 {[%clk 0:02:59]}  Bg6 {[%clk 0:02:54]} 7. cxd5 {[%clk 0:02:59]}  exd5 {[%clk 0:02:54]} 8. d3 {[%clk 0:02:58]}  Bd6 {[%clk 0:02:52]} 9. Nc3 {[%clk 0:02:57]}  O-O {[%clk 0:02:51]} 10. e4 {[%clk 0:02:57]}  dxe4 {[%clk 0:02:42]} 11. dxe4 {[%clk 0:02:57]}  Qe7 {[%clk 0:02:42]} 12. Re1 {[%clk 0:02:56]}  Rd8 {[%clk 0:02:39]} 13. Nf5 {[%clk 0:02:37]}  Bxf5 {[%clk 0:02:25]} 14. exf5 {[%clk 0:02:37]}  Qc7 {[%clk 0:02:26]} 15. Qc2 {[%clk 0:02:31]}  Nbd7 {[%clk 0:02:23]} 16. Bg5 {[%clk 0:02:28]}  h6 {[%clk 0:02:23]} 17. Bd2 {[%clk 0:02:24]}  Ne5 {[%clk 0:02:21]} 18. Bf4 {[%clk 0:02:21]}  Nc4 {[%clk 0:02:17]} 19. Bxd6 {[%clk 0:02:20]}  Nxd6 {[%clk 0:02:18]} 20. Rad1 {[%clk 0:02:13]}  Re8 {[%clk 0:02:16]} 21. a4 {[%clk 0:02:06]}  Rxe1+ {[%clk 0:02:14]} 22. Rxe1 {[%clk 0:02:07]}  Re8 {[%clk 0:02:14]} 23. Rd1 {[%clk 0:01:59]}  Qe7 {[%clk 0:02:07]} 24. a5 {[%clk 0:01:51]}  Qe5 {[%clk 0:02:01]} 25. a6 {[%clk 0:01:47]}  bxa6 {[%clk 0:02:00]} 26. Bxc6 {[%clk 0:01:44]}  Rc8 {[%clk 0:01:59]} 27. Bf3 {[%clk 0:01:19]}  Nxf5 {[%clk 0:01:56]} 28. Bb7 {[%clk 0:01:10]}  Rb8 {[%clk 0:01:53]} 29. Bxa6 {[%clk 0:00:53]}  Nd4 {[%clk 0:01:50]} 30. Qd3 {[%clk 0:00:53]}  Rd8 {[%clk 0:01:46]} 31. Bb7 {[%clk 0:00:33]}  g6 {[%clk 0:01:40]} 32. Bg2 {[%clk 0:00:30]}  Kg7 {[%clk 0:01:37]} 33. Qf1 {[%clk 0:00:16]}  Rb8 {[%clk 0:01:33]} 34. Rd2 {[%clk 0:00:15]}  h5 {[%clk 0:01:26]} 35. h3 {[%clk 0:00:15]}  h4 {[%clk 0:01:26]} 36. gxh4 {[%clk 0:00:15]}  Nh5 {[%clk 0:01:25]} 37. Qd3 {[%clk 0:00:12]}  Nf5 {[%clk 0:01:19]} 38. Qe4 {[%clk 0:00:07]}  Qxe4 {[%clk 0:01:07]} 39. Bxe4 {[%clk 0:00:08]}  Nxh4 {[%clk 0:01:05]} 40. Kf1 {[%clk 0:00:08]}  a5 {[%clk 0:01:01]} 41. Kg1 {[%clk 0:00:08]}  Nf4 {[%clk 0:01:00]} 42. Kh2 {[%clk 0:00:08]}  g5 {[%clk 0:00:59]} 43. Kg3 {[%clk 0:00:07]}  Rb4 {[%clk 0:01:00]} 44. f3 {[%clk 0:00:06]}  f5 {[%clk 0:00:43]} 45. Bb1 {[%clk 0:00:05]}  Nh5+ {[%clk 0:00:41]} 46. Kf2 {[%clk 0:00:05]}  Rf4 {[%clk 0:00:41]} 47. Rd3 {[%clk 0:00:03]}  g4 {[%clk 0:00:41]} 48. hxg4 {[%clk 0:00:02]}  fxg4 {[%clk 0:00:42]} 49. Nd5 {[%clk 0:00:01]}  g3+ {[%clk 0:00:43]} 0-1


[Site "https://www.chess.com"]

[Event "Titled Tuesday Blitz May 10 Early 2022"]
[White "Mikhnenko, Alexander"]
[Black "Tania, Sachdev"]
[WhiteFideId "34143014"]
[BlackFideId "5007844"]
[WhiteElo "2117"]
[BlackElo "2280"]
[Result "0-1"]
[Round "09"]
[TimeControl "180+1"]
[Date "2022.05.11"]
[WhiteClock "0:00:04"]
[BlackClock "0:00:13"]

1. e4 {[%clk 0:03:00]}  e5 {[%clk 0:02:58]} 2. Nf3 {[%clk 0:02:52]}  Nc6 {[%clk 0:02:58]} 3. Bb5 {[%clk 0:02:38]}  a6 {[%clk 0:02:58]} 4. Ba4 {[%clk 0:02:34]}  Nf6 {[%clk 0:02:58]} 5. O-O {[%clk 0:02:34]}  b5 {[%clk 0:02:54]} 6. Bb3 {[%clk 0:02:34]}  Bb7 {[%clk 0:02:53]} 7. d4 {[%clk 0:02:32]}  Nxd4 {[%clk 0:02:47]} 8. Nxd4 {[%clk 0:02:29]}  exd4 {[%clk 0:02:46]} 9. e5 {[%clk 0:02:30]}  Ne4 {[%clk 0:02:46]} 10. Qf3 {[%clk 0:02:26]}  Qe7 {[%clk 0:02:34]} 11. Nd2 {[%clk 0:02:21]}  Nc5 {[%clk 0:02:27]} 12. Qg4 {[%clk 0:02:19]}  Ne6 {[%clk 0:02:20]} 13. Bxe6 {[%clk 0:02:17]}  fxe6 {[%clk 0:02:15]} 14. Qxd4 {[%clk 0:02:17]}  O-O-O {[%clk 0:02:14]} 15. a4 {[%clk 0:02:12]}  Qc5 {[%clk 0:02:13]} 16. Qxc5 {[%clk 0:02:06]}  Bxc5 {[%clk 0:02:12]} 17. axb5 {[%clk 0:02:07]}  axb5 {[%clk 0:02:13]} 18. Nb3 {[%clk 0:02:08]}  Bb6 {[%clk 0:02:10]} 19. Be3 {[%clk 0:02:08]}  Bxe3 {[%clk 0:02:06]} 20. fxe3 {[%clk 0:02:09]}  Rhf8 {[%clk 0:02:06]} 21. Rxf8 {[%clk 0:02:09]}  Rxf8 {[%clk 0:02:06]} 22. Nc5 {[%clk 0:02:10]}  Bc6 {[%clk 0:02:01]} 23. Ra7 {[%clk 0:02:07]}  Kb8 {[%clk 0:01:57]} 24. Ra5 {[%clk 0:02:03]}  Rf5 {[%clk 0:01:52]} 25. Nd3 {[%clk 0:02:00]}  Rg5 {[%clk 0:01:51]} 26. g3 {[%clk 0:01:46]}  Rg4 {[%clk 0:01:49]} 27. b3 {[%clk 0:01:24]}  Kb7 {[%clk 0:01:38]} 28. b4 {[%clk 0:01:20]}  d6 {[%clk 0:01:31]} 29. exd6 {[%clk 0:01:13]}  cxd6 {[%clk 0:01:32]} 30. c3 {[%clk 0:01:03]}  Rc4 {[%clk 0:01:28]} 31. Ra3 {[%clk 0:01:00]}  g5 {[%clk 0:01:22]} 32. Kf2 {[%clk 0:00:56]}  Be4 {[%clk 0:01:17]} 33. Nb2 {[%clk 0:00:48]}  Rc8 {[%clk 0:01:17]} 34. Ke1 {[%clk 0:00:40]}  h5 {[%clk 0:01:17]} 35. Nd1 {[%clk 0:00:35]}  Bd5 {[%clk 0:01:10]} 36. Nf2 {[%clk 0:00:34]}  h4 {[%clk 0:01:09]} 37. g4 {[%clk 0:00:31]}  e5 {[%clk 0:00:54]} 38. Kd2 {[%clk 0:00:24]}  Rf8 {[%clk 0:00:53]} 39. Ke1 {[%clk 0:00:23]}  Bc4 {[%clk 0:00:49]} 40. Ne4 {[%clk 0:00:19]}  Rf1+ {[%clk 0:00:35]} 41. Kd2 {[%clk 0:00:19]}  Kc7 {[%clk 0:00:32]} 42. Ra7+ {[%clk 0:00:16]}  Kb6 {[%clk 0:00:32]} 43. Rd7 {[%clk 0:00:11]}  Rh1 {[%clk 0:00:30]} 44. Rxd6+ {[%clk 0:00:10]}  Kc7 {[%clk 0:00:31]} 45. Rg6 {[%clk 0:00:10]}  Rxh2+ {[%clk 0:00:31]} 46. Kc1 {[%clk 0:00:10]}  Re2 {[%clk 0:00:21]} 47. Nxg5 {[%clk 0:00:09]}  Rxe3 {[%clk 0:00:20]} 48. Rh6 {[%clk 0:00:09]}  Rxc3+ {[%clk 0:00:20]} 49. Kb2 {[%clk 0:00:08]}  Rb3+ {[%clk 0:00:20]} 50. Kc2 {[%clk 0:00:08]}  Rxb4 {[%clk 0:00:20]} 51. Rxh4 {[%clk 0:00:09]}  Ra4 {[%clk 0:00:18]} 52. Nh7 {[%clk 0:00:06]}  Bd5 {[%clk 0:00:13]} 53. Nf6 {[%clk 0:00:05]}  Bc6 {[%clk 0:00:13]} 54. Rh7+ {[%clk 0:00:04]}  Kb6 {[%clk 0:00:13]} 0-1


[Site "https://www.chess.com"]

[Event "Titled Tuesday Blitz May 10 Early 2022"]
[White "Nagy, Gabor"]
[Black "Lazavik, Denis"]
[WhiteFideId "737119"]
[BlackFideId "13515110"]
[WhiteElo "2569"]
[BlackElo "2437"]
[Result "0-1"]
[Round "09"]
[TimeControl "180+1"]
[Date "2022.05.10"]
[WhiteClock "0:01:32"]
[BlackClock "0:01:07"]

1. c4 {[%clk 0:03:00]}  Nf6 {[%clk 0:02:59]} 2. Nc3 {[%clk 0:03:00]}  e5 {[%clk 0:02:59]} 3. Nf3 {[%clk 0:02:51]}  Nc6 {[%clk 0:02:58]} 4. e3 {[%clk 0:02:51]}  Bb4 {[%clk 0:02:57]} 5. Nd5 {[%clk 0:02:51]}  e4 {[%clk 0:02:53]} 6. Ng1 {[%clk 0:02:51]}  O-O {[%clk 0:02:49]} 7. a3 {[%clk 0:02:50]}  Bd6 {[%clk 0:02:45]} 8. d3 {[%clk 0:02:50]}  exd3 {[%clk 0:02:39]} 9. Bxd3 {[%clk 0:02:51]}  Nxd5 {[%clk 0:02:36]} 10. cxd5 {[%clk 0:02:52]}  Ne5 {[%clk 0:02:37]} 11. Be2 {[%clk 0:02:52]}  b6 {[%clk 0:02:35]} 12. Nf3 {[%clk 0:02:47]}  Bb7 {[%clk 0:02:34]} 13. O-O {[%clk 0:02:46]}  Qe7 {[%clk 0:02:33]} 14. Nd4 {[%clk 0:02:44]}  f5 {[%clk 0:02:31]} 15. b3 {[%clk 0:02:35]}  Rae8 {[%clk 0:02:25]} 16. Bb2 {[%clk 0:02:34]}  a6 {[%clk 0:02:12]} 17. Qd2 {[%clk 0:02:30]}  Qf7 {[%clk 0:02:11]} 18. f4 {[%clk 0:02:28]}  Ng6 {[%clk 0:02:10]} 19. Rad1 {[%clk 0:02:20]}  Kh8 {[%clk 0:02:01]} 20. Nf3 {[%clk 0:02:15]}  Bc5 {[%clk 0:01:43]} 21. Bd4 {[%clk 0:02:10]}  Qxd5 {[%clk 0:01:29]} 22. Bc4 {[%clk 0:02:07]}  Qc6 {[%clk 0:01:19]} 23. b4 {[%clk 0:01:40]}  Bxd4 {[%clk 0:01:16]} 24. Qxd4 {[%clk 0:01:40]}  Re4 {[%clk 0:01:11]} 25. Qxd7 {[%clk 0:01:34]}  Rxc4 {[%clk 0:01:08]} 26. Ng5 {[%clk 0:01:32]}  Qxg2# {[%clk 0:01:07]} 0-1


[Site "https://www.chess.com"]

[Event "Titled Tuesday Blitz May 10 Early 2022"]
[White "Nenezic, Marko"]
[Black "Stoleriu, George"]
[WhiteFideId "912123"]
[BlackFideId "1227505"]
[WhiteElo "2457"]
[BlackElo "2194"]
[Result "1/2-1/2"]
[Round "09"]
[TimeControl "180+1"]
[Date "2022.05.10"]
[WhiteClock "0:00:13"]
[BlackClock "0:00:11"]

1. d4 {[%clk 0:02:56]}  e6 {[%clk 0:02:58]} 2. c4 {[%clk 0:02:56]}  Nf6 {[%clk 0:02:57]} 3. Nc3 {[%clk 0:02:56]}  Bb4 {[%clk 0:02:57]} 4. e3 {[%clk 0:02:57]}  O-O {[%clk 0:02:55]} 5. Ne2 {[%clk 0:02:57]}  c6 {[%clk 0:02:53]} 6. a3 {[%clk 0:02:53]}  Ba5 {[%clk 0:02:51]} 7. c5 {[%clk 0:02:52]}  d5 {[%clk 0:02:48]} 8. cxd6 {[%clk 0:02:52]}  Qxd6 {[%clk 0:02:49]} 9. b4 {[%clk 0:02:51]}  Bc7 {[%clk 0:02:48]} 10. g3 {[%clk 0:02:51]}  Rd8 {[%clk 0:02:31]} 11. Bg2 {[%clk 0:02:50]}  e5 {[%clk 0:02:26]} 12. O-O {[%clk 0:02:51]}  Nbd7 {[%clk 0:02:26]} 13. Qc2 {[%clk 0:02:41]}  Nf8 {[%clk 0:02:21]} 14. h3 {[%clk 0:02:35]}  Ne6 {[%clk 0:02:11]} 15. dxe5 {[%clk 0:02:34]}  Qxe5 {[%clk 0:02:08]} 16. Bb2 {[%clk 0:02:34]}  Qh5 {[%clk 0:02:05]} 17. Rad1 {[%clk 0:01:05]}  Bd7 {[%clk 0:01:43]} 18. Nd4 {[%clk 0:00:58]}  Nxd4 {[%clk 0:01:41]} 19. Rxd4 {[%clk 0:00:58]}  Bf5 {[%clk 0:01:40]} 20. Qd1 {[%clk 0:00:46]}  Qg6 {[%clk 0:00:59]} 21. Ne2 {[%clk 0:00:41]}  Be4 {[%clk 0:00:43]} 22. Nc3 {[%clk 0:00:20]}  Bxg2 {[%clk 0:00:41]} 23. Kxg2 {[%clk 0:00:21]}  Rxd4 {[%clk 0:00:41]} 24. Qxd4 {[%clk 0:00:21]}  Rd8 {[%clk 0:00:42]} 25. Qc4 {[%clk 0:00:20]}  Qc2 {[%clk 0:00:39]} 26. Ba1 {[%clk 0:00:17]}  h5 {[%clk 0:00:36]} 27. Qc5 {[%clk 0:00:09]}  Bb6 {[%clk 0:00:31]} 28. Qe7 {[%clk 0:00:09]}  Rd7 {[%clk 0:00:16]} 29. Qe5 {[%clk 0:00:08]}  Bc7 {[%clk 0:00:16]} 30. Qg5 {[%clk 0:00:07]}  Qg6 {[%clk 0:00:11]} 31. Qxg6 {[%clk 0:00:06]}  fxg6 {[%clk 0:00:11]} 32. Rd1 {[%clk 0:00:06]}  Rxd1 {[%clk 0:00:11]} 33. Nxd1 {[%clk 0:00:07]}  Kf7 {[%clk 0:00:10]} 34. Kf3 {[%clk 0:00:08]}  Ke6 {[%clk 0:00:10]} 35. e4 {[%clk 0:00:08]}  Nd7 {[%clk 0:00:10]} 36. Ke2 {[%clk 0:00:07]}  Be5 {[%clk 0:00:10]} 37. Bxe5 {[%clk 0:00:06]}  Nxe5 {[%clk 0:00:10]} 38. Nb2 {[%clk 0:00:05]}  g5 {[%clk 0:00:10]} 39. f4 {[%clk 0:00:05]}  gxf4 {[%clk 0:00:09]} 40. gxf4 {[%clk 0:00:06]}  Nf7 {[%clk 0:00:09]} 41. Kf3 {[%clk 0:00:07]}  g6 {[%clk 0:00:10]} 42. Nd3 {[%clk 0:00:07]}  b6 {[%clk 0:00:09]} 43. h4 {[%clk 0:00:07]}  Kf6 {[%clk 0:00:07]} 44. Ke3 {[%clk 0:00:07]}  Ke6 {[%clk 0:00:07]} 45. Kd4 {[%clk 0:00:08]}  Kd6 {[%clk 0:00:04]} 46. f5 {[%clk 0:00:07]}  gxf5 {[%clk 0:00:03]} 47. exf5 {[%clk 0:00:08]}  Nh6 {[%clk 0:00:04]} 48. f6 {[%clk 0:00:07]}  Ke6 {[%clk 0:00:04]} 49. Nf4+ {[%clk 0:00:08]}  Kxf6 {[%clk 0:00:04]} 50. Nxh5+ {[%clk 0:00:09]}  Kf5 {[%clk 0:00:04]} 51. Ng7+ {[%clk 0:00:09]}  Kf6 {[%clk 0:00:04]} 52. Nh5+ {[%clk 0:00:08]}  Kf5 {[%clk 0:00:04]} 53. Ng7+ {[%clk 0:00:08]}  Kf6 {[%clk 0:00:04]} 54. Ne8+ {[%clk 0:00:09]}  Ke7 {[%clk 0:00:05]} 55. Nc7 {[%clk 0:00:09]}  Nf5+ {[%clk 0:00:04]} 56. Ke5 {[%clk 0:00:08]}  Nxh4 {[%clk 0:00:05]} 57. b5 {[%clk 0:00:08]}  cxb5 {[%clk 0:00:04]} 58. Nxb5 {[%clk 0:00:08]}  a6 {[%clk 0:00:05]} 59. Nc7 {[%clk 0:00:08]}  a5 {[%clk 0:00:05]} 60. Nd5+ {[%clk 0:00:09]}  Kd7 {[%clk 0:00:06]} 61. Nxb6+ {[%clk 0:00:09]}  Kc6 {[%clk 0:00:07]} 62. Nc4 {[%clk 0:00:10]}  Kb5 {[%clk 0:00:08]} 63. Nxa5 {[%clk 0:00:10]}  Kxa5 {[%clk 0:00:08]} 64. a4 {[%clk 0:00:11]}  Ng2 {[%clk 0:00:08]} 65. Ke4 {[%clk 0:00:10]}  Ne1 {[%clk 0:00:09]} 66. Ke3 {[%clk 0:00:10]}  Nc2+ {[%clk 0:00:10]} 67. Kd2 {[%clk 0:00:11]}  Nb4 {[%clk 0:00:11]} 68. Kc3 {[%clk 0:00:11]}  Nd3 {[%clk 0:00:10]} 69. Kc4 {[%clk 0:00:12]}  Nc5 {[%clk 0:00:10]} 70. Kxc5 {[%clk 0:00:13]}  Kxa4 {[%clk 0:00:11]} 1/2-1/2


[Site "https://www.chess.com"]

[Event "Titled Tuesday Blitz May 10 Early 2022"]
[White "Raahul V S"]
[Black "Kwon, Sehyun"]
[WhiteFideId "25035525"]
[BlackFideId "13203088"]
[WhiteElo "2185"]
[BlackElo "1778"]
[Result "1-0"]
[Round "09"]
[TimeControl "180+1"]
[Date "2022.05.11"]
[WhiteClock "0:01:37"]
[BlackClock "0:00:01"]

1. Nf3 {[%clk 0:03:00]}  c5 {[%clk 0:02:58]} 2. c4 {[%clk 0:02:59]}  g6 {[%clk 0:02:57]} 3. Nc3 {[%clk 0:02:53]}  Bg7 {[%clk 0:02:57]} 4. d4 {[%clk 0:02:54]}  cxd4 {[%clk 0:02:57]} 5. Nxd4 {[%clk 0:02:55]}  Nc6 {[%clk 0:02:58]} 6. e3 {[%clk 0:02:55]}  Nf6 {[%clk 0:02:58]} 7. Be2 {[%clk 0:02:55]}  O-O {[%clk 0:02:58]} 8. O-O {[%clk 0:02:56]}  d5 {[%clk 0:02:59]} 9. cxd5 {[%clk 0:02:56]}  Nxd5 {[%clk 0:03:00]} 10. Nxc6 {[%clk 0:02:57]}  bxc6 {[%clk 0:03:00]} 11. Na4 {[%clk 0:02:57]}  Rb8 {[%clk 0:02:59]} 12. e4 {[%clk 0:02:44]}  Nb4 {[%clk 0:02:55]} 13. Bf4 {[%clk 0:02:39]}  e5 {[%clk 0:02:18]} 14. Be3 {[%clk 0:02:26]}  Qa5 {[%clk 0:02:14]} 15. a3 {[%clk 0:02:24]}  Na6 {[%clk 0:02:06]} 16. b4 {[%clk 0:02:23]}  Qc7 {[%clk 0:02:04]} 17. Qc2 {[%clk 0:02:22]}  Rd8 {[%clk 0:01:56]} 18. Rac1 {[%clk 0:02:18]}  Qb7 {[%clk 0:01:19]} 19. Qxc6 {[%clk 0:02:12]}  Bf8 {[%clk 0:00:16]} 20. Qxb7 {[%clk 0:01:56]}  Bxb7 {[%clk 0:00:15]} 21. b5 {[%clk 0:01:56]}  Bxa3 {[%clk 0:00:04]} 22. Ra1 {[%clk 0:01:45]}  Bf8 {[%clk 0:00:01]} 23. bxa6 {[%clk 0:01:44]}  Bxe4 {[%clk 0:00:02]} 24. Bxa7 {[%clk 0:01:43]}  Ra8 {[%clk 0:00:02]} 25. Bb6 {[%clk 0:01:41]}  Rd6 {[%clk 0:00:01]} 26. Bc5 {[%clk 0:01:41]}  Rc6 {[%clk 0:00:01]} 27. Bxf8 {[%clk 0:01:38]}  Kxf8 {[%clk 0:00:01]} 28. Bb5 {[%clk 0:01:38]}  Rd6 {[%clk 0:00:01]} 29. Nc5 {[%clk 0:01:37]} 1-0


[Site "https://www.chess.com"]

[Event "Titled Tuesday Blitz May 10 Early 2022"]
[White "Riehle, Marco"]
[Black "Bacrot, Etienne"]
[WhiteFideId "12904392"]
[BlackFideId "605506"]
[WhiteElo "2462"]
[BlackElo "2673"]
[Result "0-1"]
[Round "09"]
[TimeControl "180+1"]
[Date "2022.05.10"]
[WhiteClock "0:00:37"]
[BlackClock "0:00:15"]

1. e4 {[%clk 0:03:00]}  c5 {[%clk 0:02:59]} 2. a3 {[%clk 0:02:52]}  g6 {[%clk 0:02:57]} 3. h4 {[%clk 0:02:43]}  h5 {[%clk 0:02:43]} 4. Nc3 {[%clk 0:02:37]}  Nc6 {[%clk 0:02:40]} 5. b4 {[%clk 0:02:25]}  d6 {[%clk 0:02:40]} 6. b5 {[%clk 0:02:23]}  Nd4 {[%clk 0:02:40]} 7. Nd5 {[%clk 0:02:22]}  Bg4 {[%clk 0:02:19]} 8. f3 {[%clk 0:02:20]}  Bd7 {[%clk 0:02:17]} 9. c3 {[%clk 0:02:19]}  Nxb5 {[%clk 0:02:12]} 10. Rb1 {[%clk 0:02:15]}  Nc7 {[%clk 0:01:53]} 11. Rxb7 {[%clk 0:02:14]}  Nxd5 {[%clk 0:01:50]} 12. exd5 {[%clk 0:02:15]}  Nf6 {[%clk 0:01:48]} 13. c4 {[%clk 0:02:04]}  Bg7 {[%clk 0:01:48]} 14. Bd3 {[%clk 0:02:02]}  Qa5 {[%clk 0:01:34]} 15. Ne2 {[%clk 0:01:58]}  Qa6 {[%clk 0:01:29]} 16. Rb1 {[%clk 0:01:56]}  Nxd5 {[%clk 0:01:06]} 17. O-O {[%clk 0:01:38]}  Nb6 {[%clk 0:00:58]} 18. Nf4 {[%clk 0:01:36]}  O-O {[%clk 0:00:54]} 19. Qe2 {[%clk 0:01:32]}  e5 {[%clk 0:00:52]} 20. Nd5 {[%clk 0:01:24]}  Nxd5 {[%clk 0:00:40]} 21. cxd5 {[%clk 0:01:25]}  Qc8 {[%clk 0:00:40]} 22. Ba6 {[%clk 0:01:21]}  Qd8 {[%clk 0:00:39]} 23. g3 {[%clk 0:01:18]}  Rb8 {[%clk 0:00:34]} 24. Bb2 {[%clk 0:01:14]}  Rb6 {[%clk 0:00:26]} 25. f4 {[%clk 0:01:11]}  Qb8 {[%clk 0:00:26]} 26. fxe5 {[%clk 0:00:51]}  dxe5 {[%clk 0:00:22]} 27. d4 {[%clk 0:00:48]}  cxd4 {[%clk 0:00:19]} 28. Bd3 {[%clk 0:00:48]}  e4 {[%clk 0:00:18]} 29. Bxe4 {[%clk 0:00:45]}  d3 {[%clk 0:00:15]} 30. Bxd3 {[%clk 0:00:40]}  Rxb2 {[%clk 0:00:15]} 31. Rxb2 {[%clk 0:00:41]}  Qxb2 {[%clk 0:00:16]} 32. Qf3 {[%clk 0:00:41]}  Qd4+ {[%clk 0:00:15]} 33. Kh2 {[%clk 0:00:41]}  Bg4 {[%clk 0:00:15]} 34. Qe4 {[%clk 0:00:37]}  Qxe4 {[%clk 0:00:15]} 35. Bxe4 {[%clk 0:00:38]}  Be5 {[%clk 0:00:15]} 36. Bg2 {[%clk 0:00:38]}  Rc8 {[%clk 0:00:13]} 37. Re1 {[%clk 0:00:38]}  Bd6 {[%clk 0:00:14]} 38. Re3 {[%clk 0:00:36]}  Rc2 {[%clk 0:00:13]} 39. Kh1 {[%clk 0:00:33]}  Kg7 {[%clk 0:00:13]} 40. a4 {[%clk 0:00:32]}  a5 {[%clk 0:00:13]} 41. Rb3 {[%clk 0:00:31]}  Rd2 {[%clk 0:00:13]} 42. Rb6 {[%clk 0:00:31]}  Bxg3 {[%clk 0:00:12]} 43. Rb1 {[%clk 0:00:32]}  Rd1+ {[%clk 0:00:11]} 44. Rxd1 {[%clk 0:00:31]}  Bxd1 {[%clk 0:00:12]} 45. Kg1 {[%clk 0:00:32]}  Bxa4 {[%clk 0:00:12]} 46. Kf1 {[%clk 0:00:32]}  Bd6 {[%clk 0:00:13]} 47. Ke2 {[%clk 0:00:33]}  Bd7 {[%clk 0:00:13]} 48. Kd3 {[%clk 0:00:33]}  a4 {[%clk 0:00:14]} 49. Kc3 {[%clk 0:00:33]}  a3 {[%clk 0:00:14]} 50. Kb3 {[%clk 0:00:34]}  f5 {[%clk 0:00:15]} 51. Bf3 {[%clk 0:00:34]}  Kf6 {[%clk 0:00:15]} 52. Be2 {[%clk 0:00:33]}  Ke5 {[%clk 0:00:15]} 53. Bd3 {[%clk 0:00:34]}  Kf4 {[%clk 0:00:15]} 54. Bc2 {[%clk 0:00:35]}  Ke5 {[%clk 0:00:15]} 55. Ka2 {[%clk 0:00:36]}  Kxd5 {[%clk 0:00:15]} 56. Kb1 {[%clk 0:00:36]}  Ke5 {[%clk 0:00:16]} 57. Ka2 {[%clk 0:00:37]}  Kd4 {[%clk 0:00:16]} 58. Kb1 {[%clk 0:00:38]}  Kc3 {[%clk 0:00:16]} 59. Kc1 {[%clk 0:00:37]}  a2 {[%clk 0:00:15]} 0-1


[Site "https://www.chess.com"]

[Event "Titled Tuesday Blitz May 10 Early 2022"]
[White "Rodchenkov, Sergey D."]
[Black "Maevsky, Nikolay"]
[WhiteFideId "4168712"]
[BlackFideId "4198220"]
[WhiteElo "2306"]
[BlackElo "2149"]
[Result "1-0"]
[Round "09"]
[TimeControl "180+1"]
[Date "2022.05.11"]
[WhiteClock "0:00:53"]
[BlackClock "0:00:07"]

1. e4 {[%clk 0:03:00]}  c5 {[%clk 0:02:57]} 2. Nf3 {[%clk 0:02:57]}  Nf6 {[%clk 0:02:57]} 3. Nc3 {[%clk 0:02:55]}  Nc6 {[%clk 0:02:57]} 4. d4 {[%clk 0:02:55]}  d5 {[%clk 0:02:56]} 5. exd5 {[%clk 0:02:49]}  Nxd5 {[%clk 0:02:56]} 6. Bc4 {[%clk 0:02:49]}  Nxc3 {[%clk 0:02:55]} 7. bxc3 {[%clk 0:02:50]}  e6 {[%clk 0:02:55]} 8. O-O {[%clk 0:02:46]}  Be7 {[%clk 0:02:55]} 9. a4 {[%clk 0:02:43]}  O-O {[%clk 0:02:53]} 10. Ba3 {[%clk 0:02:38]}  cxd4 {[%clk 0:02:51]} 11. cxd4 {[%clk 0:02:39]}  b6 {[%clk 0:02:40]} 12. Bxe7 {[%clk 0:02:25]}  Qxe7 {[%clk 0:02:30]} 13. Bd3 {[%clk 0:02:07]}  Bb7 {[%clk 0:02:26]} 14. h4 {[%clk 0:02:05]}  h6 {[%clk 0:02:19]} 15. c3 {[%clk 0:02:04]}  Rfd8 {[%clk 0:02:15]} 16. Bc2 {[%clk 0:02:01]}  Ba6 {[%clk 0:02:09]} 17. Re1 {[%clk 0:01:59]}  Rac8 {[%clk 0:02:00]} 18. Bb1 {[%clk 0:01:56]}  Qf6 {[%clk 0:01:34]} 19. Qc2 {[%clk 0:01:48]}  g6 {[%clk 0:01:34]} 20. h5 {[%clk 0:01:39]}  Nxd4 {[%clk 0:01:29]} 21. Nxd4 {[%clk 0:01:29]}  Rxd4 {[%clk 0:01:28]} 22. hxg6 {[%clk 0:01:23]}  fxg6 {[%clk 0:00:47]} 23. cxd4 {[%clk 0:01:17]}  Rxc2 {[%clk 0:00:47]} 24. Bxc2 {[%clk 0:01:18]}  Bc4 {[%clk 0:00:42]} 25. Rad1 {[%clk 0:01:14]}  Bd5 {[%clk 0:00:39]} 26. Be4 {[%clk 0:01:13]}  Qg5 {[%clk 0:00:25]} 27. Bxd5 {[%clk 0:01:05]}  Qxd5 {[%clk 0:00:25]} 28. Re5 {[%clk 0:00:59]}  Qc6 {[%clk 0:00:21]} 29. Rde1 {[%clk 0:00:55]}  Kf7 {[%clk 0:00:19]} 30. a5 {[%clk 0:00:51]}  bxa5 {[%clk 0:00:16]} 31. Rxa5 {[%clk 0:00:52]}  Qb6 {[%clk 0:00:15]} 32. Rae5 {[%clk 0:00:53]}  a5 {[%clk 0:00:14]} 33. Ra1 {[%clk 0:00:47]}  Qxd4 {[%clk 0:00:09]} 34. Rexa5 {[%clk 0:00:48]}  Kf6 {[%clk 0:00:08]} 35. R5a4 {[%clk 0:00:48]}  Qd5 {[%clk 0:00:08]} 36. R4a3 {[%clk 0:00:48]}  g5 {[%clk 0:00:08]} 37. Rf3+ {[%clk 0:00:49]}  Kg6 {[%clk 0:00:08]} 38. Re1 {[%clk 0:00:49]}  h5 {[%clk 0:00:08]} 39. Rfe3 {[%clk 0:00:50]}  Kf6 {[%clk 0:00:08]} 40. Rf3+ {[%clk 0:00:50]}  Kg6 {[%clk 0:00:08]} 41. Rfe3 {[%clk 0:00:51]}  Kf6 {[%clk 0:00:08]} 42. g3 {[%clk 0:00:50]}  h4 {[%clk 0:00:08]} 43. gxh4 {[%clk 0:00:50]}  gxh4 {[%clk 0:00:08]} 44. Re4 {[%clk 0:00:50]}  Kg5 {[%clk 0:00:05]} 45. Re5+ {[%clk 0:00:49]}  Kf4 {[%clk 0:00:02]} 46. Rxd5 {[%clk 0:00:49]}  exd5 {[%clk 0:00:02]} 47. Rd1 {[%clk 0:00:50]}  Ke4 {[%clk 0:00:02]} 48. Kh2 {[%clk 0:00:49]}  Kf3 {[%clk 0:00:03]} 49. Rxd5 {[%clk 0:00:48]}  Kxf2 {[%clk 0:00:03]} 50. Kh3 {[%clk 0:00:48]}  Kf3 {[%clk 0:00:04]} 51. Rh5 {[%clk 0:00:49]}  Ke4 {[%clk 0:00:05]} 52. Rxh4+ {[%clk 0:00:49]}  Kf3 {[%clk 0:00:05]} 53. Rg4 {[%clk 0:00:50]}  Ke3 {[%clk 0:00:05]} 54. Kg3 {[%clk 0:00:50]}  Ke2 {[%clk 0:00:05]} 55. Rf4 {[%clk 0:00:51]}  Kd3 {[%clk 0:00:06]} 56. Kf3 {[%clk 0:00:51]}  Kd2 {[%clk 0:00:06]} 57. Re4 {[%clk 0:00:50]}  Kc3 {[%clk 0:00:06]} 58. Ke3 {[%clk 0:00:50]}  Kb3 {[%clk 0:00:06]} 59. Kd3 {[%clk 0:00:51]}  Ka3 {[%clk 0:00:07]} 60. Kc3 {[%clk 0:00:51]}  Ka2 {[%clk 0:00:07]} 61. Rb4 {[%clk 0:00:52]}  Ka1 {[%clk 0:00:07]} 62. Kc2 {[%clk 0:00:52]}  Ka2 {[%clk 0:00:07]} 63. Ra4# {[%clk 0:00:53]} 1-0


[Site "https://www.chess.com"]